fUST/lending_fUST_20251011
["ID","MTS","AMOUNT","RATE_DAILY","PERIOD"]
[390877828,1760183484315,-1000.0,0.00027397,30]
[390877829,1760183484326,-1000.0,0.00027397,30]
[390877830,1760183484335,-1000.0,0.00027397,30]
[390877831,1760183484344,-1000.0,0.00027397,30]
[390877832,1760183484353,-1000.0,0.00027397,30]
[390877833,1760183484363,-1135.99673508,0.00027397,30]
[390877834,1760183484372,-4208.83,0.000274,2]
[390877835,1760183484381,-9286.62,0.000274,2]
[390877836,1760183484390,-3000.0,0.00027412,5]
[390877837,1760183484400,-1766.0,0.00027413,2]
[390877838,1760183484410,-250.0,0.00027421,2]
[390877839,1760183484419,-2340.28,0.0002743,2]
[390877840,1760183484428,-1770.0,0.00027439,2]
[390877841,1760183484437,-1000.0,0.0002747,120]
[390877842,1760183484447,-1000.0,0.0002747,120]
[390877843,1760183484456,-456.524,0.0002747,120]
[390877844,1760183484464,-1766.0,0.00027542,2]
[390877845,1760183484474,-500.0,0.00027544,10]
[390877846,1760183484483,-3005.15323595,0.0002756,5]
[390877847,1760183484491,-154.06,0.00027584,15]
[390877848,1760183484500,-1769.0,0.00027673,2]
[390877849,1760183484509,-154.06,0.00027684,15]
[390877850,1760183484518,-339.2803193,0.00027755,2]
[390877851,1760183484527,-154.06,0.00027784,15]
[390877852,1760183484535,-550.0,0.00027812,5]
[390877853,1760183484544,-336.25,0.00027818,10]
[390877854,1760183484553,-154.809388,0.00027831,10]
[390877855,1760183484562,-1766.0,0.00027857,2]
[390877856,1760183484571,-154.06,0.00027884,15]
[390877857,1760183484580,-3500.0,0.0002796,5]
[390877858,1760183484589,-158.02182155,0.00027962,2]
[390877859,1760183484598,-154.06,0.00027984,15]
[390877860,1760183484607,-1000.0,0.00028,120]
[390877861,1760183484615,-2609.37557469,0.00028,30]
[390877862,1760183484624,-154.06,0.00028084,15]
[390877863,1760183484633,-168.18277568,0.00028133,9]
[390877864,1760183484642,-864.0,0.00028168,30]
[390877865,1760183484652,-194.0,0.0002818,20]
[390877866,1760183484661,-154.06,0.00028184,15]
[390877867,1760183484670,-154.809388,0.00028243,2]
[390877868,1760183484679,-154.06,0.00028284,15]
[390877869,1760183484687,-160.0,0.00028322,4]
[390877870,1760183484696,-364.10570852,0.00028355,2]
[390877871,1760183484705,-650.0,0.0002836,5]
[390877872,1760183484714,-154.06,0.00028384,15]
[390877873,1760183484723,-154.06,0.00028484,15]
[390877874,1760183484732,-4000.0,0.00028508,5]
[390877875,1760183484740,-1255.73178648,0.00028519,2]
[390877876,1760183484749,-150.0,0.00028561,7]
[390877877,1760183484758,-154.06,0.00028584,15]
[390877878,1760183484766,-152.198179,0.00028662,10]
[390877879,1760183484775,-154.809388,0.00028662,10]
[390877880,1760183484785,-154.11940111,0.00028684,15]
[390877881,1760183484793,-1000.0,0.00028701,5]
[390877882,1760183484802,-500.0,0.00028767,60]
[390877883,1760183484811,-500.0,0.00028767,60]
[390877884,1760183484820,-500.0,0.00028767,60]
[390877885,1760183484829,-500.0,0.00028767,60]
[390877886,1760183484838,-500.0,0.00028767,60]
[390877887,1760183484846,-500.0,0.00028767,60]
[390877888,1760183484855,-641.54,0.00028767,60]
[390877889,1760183484864,-1047.0881949,0.00028812,2]
[390877890,1760183484873,-1249.7874246,0.00028824,2]
[390877891,1760183484882,-750.0,0.00028908,5]
[390877892,1760183484891,-388.93109773,0.00028955,2]
[390877893,1760183484900,-1255.73178648,0.00028979,2]
[390877894,1760183484909,-300.0,0.00029,120]
[390877895,1760183484918,-1016.76,0.00029,2]
[390877896,1760183484927,-158.02182155,0.0002901,2]
[390877897,1760183484936,-4500.0,0.00029056,5]
[390877898,1760183484945,-1255.73178648,0.0002907,2]
[390877899,1760183484953,-2730.33,0.00029145,2]
[390877900,1760183484962,-1016.76,0.00029174,2]
[390877901,1760183484971,-154.809388,0.0002929,2]
[390877902,1760183484979,-981.732,0.00029302,2]
[390877903,1760183484988,-630.0,0.00029302,2]
[390877904,1760183484997,-2159.0,0.00029302,2]
[390877905,1760183485099,-1077.0,0.0002933,2]
[390877906,1760183485108,-1016.76,0.00029348,2]
[390877907,1760183485117,-391.9198272,0.0002937,30]
[390877908,1760183485126,-1822.41147675,0.00029414,2]
[390877909,1760183485135,-850.0,0.00029456,5]
[390877910,1760183485145,-20386.48,0.00029462,12]
[390877911,1760183485154,-1255.73178648,0.00029468,2]
[390877912,1760183485163,-200.0,0.00029477,120]
[390877913,1760183485172,-6112.0756171,0.00029477,2]
[390877914,1760183485181,-152.198179,0.00029493,10]
[390877915,1760183485190,-154.809388,0.00029493,10]
[390877916,1760183485199,-191.4794344,0.00029507,30]
[390877917,1760183485208,-297.8851395,0.00029507,30]
[390877918,1760183485217,-162.8757457,0.00029507,30]
[390877919,1760183485226,-153.5971104,0.00029507,30]
[390877920,1760183485234,-588.4106815,0.00029507,30]
[390877921,1760183485243,-153.0,0.00029507,30]
[390877922,1760183485252,-413.75648695,0.00029555,2]
[390877923,1760183485261,-801.70176009,0.0002958,2]
[390877924,1760183485270,-5000.0,0.00029604,5]
[390877925,1760183485279,-800.0,0.00029614,2]
[390877926,1760183485293,-242.66491503,0.00029656,2]
[390877927,1760183485303,-800.0,0.00029657,2]
[390877928,1760183485312,-11994.78,0.00029754,12]
[390877929,1760183485321,-800.0,0.00029774,2]
[390877930,1760183485330,-9286.62,0.000298,2]
[390877931,1760183485340,-600.182659,0.00029808,30]
[390877932,1760183485349,-154.809388,0.00029815,30]
[390877933,1760183485360,-154.809388,0.00029818,7]
[390877934,1760183485370,-800.0,0.00029825,2]
[390877935,1760183485380,-1255.73178648,0.00029858,2]
[390877936,1760183485390,-1255.73178651,0.00029863,2]
[390877937,1760183485401,-4196.0,0.00029878,2]
[390877938,1760183485411,-2000.0,0.00029927,120]
[390877939,1760183485420,-2000.0,0.00029927,120]
[390877940,1760183485429,-1419.707,0.00029927,120]
[390877941,1760183485438,-154.809388,0.00029944,30]
[390877942,1760183485446,-500.0,0.00029983,11]
[390877943,1760183485456,-152.198179,0.00029987,7]
[390877944,1760183485465,-154.809388,0.00029987,7]
[390877945,1760183485475,-154.809388,0.00029996,20]
[390877946,1760183485484,-179.95425,0.0003,2]
[390877947,1760183485494,-231.36687,0.0003,120]
[390877948,1760183485503,-1000.0,0.0003,120]
[390877949,1760183485512,-923.0,0.0003,2]
[390877950,1760183485520,-250.0,0.0003,10]
[390877951,1760183485527,-500.0,0.0003,11]
[390877952,1760183485537,-950.0,0.00030004,5]
[390877953,1760183485547,-2603.29,0.0003001,30]
[390877954,1760183485556,-158.02182155,0.00030057,2]
[390877955,1760183485565,-152.198179,0.00030072,30]
[390877956,1760183485574,-154.809388,0.00030072,30]
[390877957,1760183485583,-153.0,0.00030082,30]
[390877958,1760183485591,-151.0,0.00030091,30]
[390877959,1760183485601,-151.0,0.00030091,30]
[390877960,1760183485610,-151.0,0.00030091,30]
[390877961,1760183485619,-151.0,0.00030091,30]
[390877962,1760183485629,-151.0,0.00030091,30]
[390877963,1760183485637,-151.0,0.00030091,30]
[390877964,1760183485648,-151.0,0.00030091,30]
[390877965,1760183485658,-151.34254,0.00030091,30]
[390877966,1760183485667,-151.0,0.00030091,30]
[390877967,1760183485675,-151.0,0.00030091,30]
[390877968,1760183485686,-151.0,0.00030091,30]
[390877969,1760183485695,-151.0,0.00030091,30]
[390877970,1760183485704,-151.0,0.00030091,30]
[390877971,1760183485713,-151.0,0.00030091,30]
[390877972,1760183485723,-151.0,0.00030091,30]
[390877973,1760183485732,-159.476869,0.00030091,30]
[390877974,1760183485741,-151.0,0.00030091,30]
[390877975,1760183485750,-151.0,0.00030091,30]
[390877976,1760183485759,-151.0,0.00030091,30]
[390877977,1760183485768,-151.0,0.00030091,30]
[390877978,1760183485777,-151.780047,0.00030091,30]
[390877979,1760183485787,-151.0,0.00030091,30]
[390877980,1760183485797,-151.0,0.00030091,30]
[390877981,1760183485806,-151.0,0.00030091,30]
[390877982,1760183485815,-151.0,0.00030091,30]
[390877983,1760183485824,-151.0,0.00030091,30]
[390877984,1760183485833,-151.0,0.00030091,30]
[390877985,1760183485842,-151.0,0.00030091,30]
[390877986,1760183485851,-151.0,0.00030091,30]
[390877987,1760183485861,-151.0,0.00030091,30]
[390877988,1760183485870,-151.0,0.00030091,30]
[390877989,1760183485879,-151.0,0.00030091,30]
[390877990,1760183485889,-151.0,0.00030091,30]
[390877991,1760183485898,-151.0,0.00030091,30]
[390877992,1760183485907,-209.885403,0.00030091,30]
[390877993,1760183485917,-151.0,0.00030091,30]
[390877994,1760183485926,-151.0,0.00030091,30]
[390877995,1760183485936,-151.0,0.00030091,30]
[390877996,1760183485949,-151.0,0.00030091,30]
[390877997,1760183485962,-151.973218,0.00030091,30]
[390877998,1760183485975,-151.0,0.00030091,30]
[390877999,1760183485987,-151.0,0.00030091,30]
[390878000,1760183486000,-151.0,0.00030091,30]
[390878001,1760183486016,-151.0,0.00030091,30]
[390878002,1760183486024,-151.0,0.00030091,30]
[390878003,1760183486034,-151.0,0.00030091,30]
[390878004,1760183486043,-151.0,0.00030091,30]
[390878005,1760183486052,-151.0,0.00030091,30]
[390878006,1760183486061,-264.899677,0.00030091,30]
[390878007,1760183486070,-151.0,0.00030091,30]
[390878008,1760183486080,-151.0,0.00030091,30]
[390878009,1760183486089,-151.0,0.00030091,30]
[390878010,1760183486098,-151.0,0.00030091,30]
[390878011,1760183486108,-151.0,0.00030091,30]
[390878012,1760183486117,-151.0,0.00030091,30]
[390878013,1760183486126,-151.0,0.00030091,30]
[390878014,1760183486136,-151.0,0.00030091,30]
[390878015,1760183486145,-151.0,0.00030091,30]
[390878016,1760183486155,-151.0,0.00030091,30]
[390878017,1760183486164,-151.0,0.00030091,30]
[390878018,1760183486174,-151.0,0.00030091,30]
[390878019,1760183486183,-151.0,0.00030091,30]
[390878020,1760183486193,-244.492781,0.00030091,30]
[390878021,1760183486201,-151.0,0.00030091,30]
[390878022,1760183486210,-151.0,0.00030091,30]
[390878023,1760183486219,-151.0,0.00030091,30]
[390878024,1760183486229,-151.0,0.00030091,30]
[390878025,1760183486238,-151.0,0.00030091,30]
[390878026,1760183486248,-151.0,0.00030091,30]
[390878027,1760183486258,-151.0,0.00030091,30]
[390878028,1760183486267,-222.248011,0.00030091,30]
[390878029,1760183486276,-474.687291,0.00030091,30]
[390878030,1760183486286,-474.687291,0.00030091,30]
[390878031,1760183486297,-474.687291,0.00030091,30]
[390878032,1760183486306,-474.687291,0.00030091,30]
[390878033,1760183486315,-474.687291,0.00030091,30]
[390878034,1760183486324,-474.687291,0.00030091,30]
[390878035,1760183486335,-474.687291,0.00030091,30]
[390878036,1760183486344,-474.687291,0.00030091,30]
[390878037,1760183486353,-474.687291,0.00030091,30]
[390878038,1760183486365,-474.687291,0.00030091,30]
[390878039,1760183486375,-474.687291,0.00030091,30]
[390878040,1760183486385,-474.687291,0.00030091,30]
[390878041,1760183486394,-474.687291,0.00030091,30]
[390878042,1760183486404,-474.687291,0.00030091,30]
[390878043,1760183486413,-474.687291,0.00030091,30]
[390878044,1760183486423,-474.6873,0.00030091,30]
[390878045,1760183486432,-151.0,0.00030091,30]
[390878046,1760183486440,-151.0,0.00030091,30]
[390878047,1760183486450,-151.0,0.00030091,30]
[390878048,1760183486459,-151.0,0.00030091,30]
[390878049,1760183486468,-151.0,0.00030091,30]
[390878050,1760183486477,-151.0,0.00030091,30]
[390878051,1760183486486,-151.0,0.00030091,30]
[390878052,1760183486495,-151.0,0.00030091,30]
[390878053,1760183486504,-151.0,0.00030091,30]
[390878054,1760183486513,-151.0,0.00030091,30]
[390878055,1760183486522,-173.325,0.00030091,30]
[390878056,1760183486531,-755.13679,0.00030091,30]
[390878057,1760183486539,-755.13679,0.00030091,30]
[390878058,1760183486548,-755.13679,0.00030091,30]
[390878059,1760183486558,-755.13679,0.00030091,30]
[390878060,1760183486567,-755.13679,0.00030091,30]
[390878061,1760183486576,-755.13679,0.00030091,30]
[390878062,1760183486585,-755.13679,0.00030091,30]
[390878063,1760183486594,-755.13679,0.00030091,30]
[390878064,1760183486603,-755.13679,0.00030091,30]
[390878065,1760183486612,-755.13679,0.00030091,30]
[390878066,1760183486710,-755.13679,0.00030091,30]
[390878067,1760183486719,-755.136792,0.00030091,30]
[390878068,1760183486728,-866.046309,0.00030091,30]
[390878069,1760183486737,-866.046309,0.00030091,30]
[390878070,1760183486746,-866.046309,0.00030091,30]
[390878071,1760183486755,-866.046309,0.00030091,30]
[390878072,1760183486763,-866.046309,0.00030091,30]
[390878073,1760183486772,-866.046309,0.00030091,30]
[390878074,1760183486781,-866.046309,0.00030091,30]
[390878075,1760183486790,-866.046309,0.00030091,30]
[390878076,1760183486799,-866.046309,0.00030091,30]
[390878077,1760183486809,-866.046309,0.00030091,30]
[390878078,1760183486818,-866.046309,0.00030091,30]
[390878079,1760183486827,-866.046314,0.00030091,30]
[390878080,1760183486837,-152.198179,0.00030098,20]
[390878081,1760183486846,-154.809388,0.00030098,20]
[390878082,1760183486855,-195.0,0.000301,25]
[390878083,1760183486864,-237.05,0.00030136,120]
[390878084,1760183486873,-5500.0,0.00030152,5]
[390878085,1760183486883,-5559.3,0.00030154,60]
[390878086,1760183486893,-151.0,0.00030154,30]
[390878087,1760183486903,-151.0,0.00030154,30]
[390878088,1760183486912,-151.0,0.00030154,30]
[390878089,1760183486921,-151.0,0.00030154,30]
[390878090,1760183486931,-151.0,0.00030154,30]
[390878091,1760183486939,-151.0,0.00030154,30]
[390878092,1760183486949,-151.0,0.00030154,30]
[390878093,1760183486959,-151.0,0.00030154,30]
[390878094,1760183486968,-151.0,0.00030154,30]
[390878095,1760183486978,-151.0,0.00030154,30]
[390878096,1760183486987,-244.038448,0.00030154,30]
[390878097,1760183486995,-151.0,0.00030154,30]
[390878098,1760183487005,-151.0,0.00030154,30]
[390878099,1760183487014,-151.0,0.00030154,30]
[390878100,1760183487023,-151.0,0.00030154,30]
[390878101,1760183487034,-151.0,0.00030154,30]
[390878102,1760183487043,-157.416239,0.00030154,30]
[390878103,1760183487054,-151.0,0.00030154,30]
[390878104,1760183487064,-151.0,0.00030154,30]
[390878105,1760183487073,-151.0,0.00030154,30]
[390878106,1760183487082,-181.513101,0.00030154,30]
[390878107,1760183487092,-181.513101,0.00030154,30]
[390878108,1760183487102,-181.513101,0.00030154,30]
[390878109,1760183487111,-181.513101,0.00030154,30]
[390878110,1760183487120,-181.513101,0.00030154,30]
[390878111,1760183487129,-181.513101,0.00030154,30]
[390878112,1760183487138,-181.513101,0.00030154,30]
[390878113,1760183487147,-181.513101,0.00030154,30]
[390878114,1760183487156,-181.513101,0.00030154,30]
[390878115,1760183487165,-181.513101,0.00030154,30]
[390878116,1760183487175,-181.513101,0.00030154,30]
[390878117,1760183487184,-151.0,0.00030154,30]
[390878118,1760183487193,-181.513096,0.00030154,30]
[390878119,1760183487202,-151.0,0.00030154,30]
[390878120,1760183487211,-151.0,0.00030154,30]
[390878121,1760183487220,-200.212284,0.00030154,30]
[390878122,1760183487230,-151.0,0.00030154,30]
[390878123,1760183487238,-151.0,0.00030154,30]
[390878124,1760183487247,-151.0,0.00030154,30]
[390878125,1760183487256,-151.0,0.00030154,30]
[390878126,1760183487265,-151.0,0.00030154,30]
[390878127,1760183487275,-151.0,0.00030154,30]
[390878128,1760183487285,-151.0,0.00030154,30]
[390878129,1760183487297,-151.0,0.00030154,30]
[390878130,1760183487305,-151.0,0.00030154,30]
[390878131,1760183487314,-151.0,0.00030154,30]
[390878132,1760183487324,-151.0,0.00030154,30]
[390878133,1760183487335,-225.354299,0.00030154,30]
[390878134,1760183487344,-528.480421,0.00030154,30]
[390878135,1760183487354,-528.480421,0.00030154,30]
[390878136,1760183487363,-528.480421,0.00030154,30]
[390878137,1760183487372,-528.480421,0.00030154,30]
[390878138,1760183487381,-528.480421,0.00030154,30]
[390878139,1760183487396,-528.480421,0.00030154,30]
[390878140,1760183487416,-528.480421,0.00030154,30]
[390878141,1760183487434,-528.480421,0.00030154,30]
[390878142,1760183487453,-528.480421,0.00030154,30]
[390878143,1760183487473,-528.480421,0.00030154,30]
[390878144,1760183487490,-528.480421,0.00030154,30]
[390878145,1760183487509,-528.480422,0.00030154,30]
[390878146,1760183487523,-151.0,0.00030154,30]
[390878147,1760183487540,-151.0,0.00030154,30]
[390878148,1760183487558,-151.0,0.00030154,30]
[390878149,1760183487578,-151.0,0.00030154,30]
[390878150,1760183487589,-151.0,0.00030154,30]
[390878151,1760183487608,-151.0,0.00030154,30]
[390878152,1760183487623,-151.0,0.00030154,30]
[390878153,1760183487638,-151.0,0.00030154,30]
[390878154,1760183487652,-151.0,0.00030154,30]
[390878155,1760183487666,-151.0,0.00030154,30]
[390878156,1760183487682,-151.0,0.00030154,30]
[390878157,1760183487696,-151.0,0.00030154,30]
[390878158,1760183487710,-151.0,0.00030154,30]
[390878159,1760183487725,-151.0,0.00030154,30]
[390878160,1760183487740,-199.555606,0.00030154,30]
[390878161,1760183487755,-151.0,0.00030154,30]
[390878162,1760183487770,-151.0,0.00030154,30]
[390878163,1760183487785,-151.0,0.00030154,30]
[390878164,1760183487798,-196.340557,0.00030154,30]
[390878165,1760183487813,-151.0,0.00030154,30]
[390878166,1760183487827,-151.0,0.00030154,30]
[390878167,1760183487841,-215.932902,0.00030154,30]
[390878168,1760183487851,-151.0,0.00030154,30]
[390878169,1760183487860,-151.0,0.00030154,30]
[390878170,1760183487870,-218.95049,0.00030154,30]
[390878171,1760183487879,-151.0,0.00030154,30]
[390878172,1760183487888,-151.0,0.00030154,30]
[390878173,1760183487898,-151.0,0.00030154,30]
[390878174,1760183487907,-151.0,0.00030154,30]
[390878175,1760183487917,-151.0,0.00030154,30]
[390878176,1760183487925,-151.0,0.00030154,30]
[390878177,1760183487935,-249.700524,0.00030154,30]
[390878178,1760183487944,-151.0,0.00030154,30]
[390878179,1760183487953,-151.0,0.00030154,30]
[390878180,1760183487964,-1077.638623,0.00030154,30]
[390878181,1760183487973,-1077.638623,0.00030154,30]
[390878182,1760183487983,-1077.638623,0.00030154,30]
[390878183,1760183487992,-1077.638623,0.00030154,30]
[390878184,1760183488001,-1077.638623,0.00030154,30]
[390878185,1760183488010,-1077.638623,0.00030154,30]
[390878186,1760183488019,-1077.638623,0.00030154,30]
[390878187,1760183488028,-1077.638623,0.00030154,30]
[390878188,1760183488038,-1077.638623,0.00030154,30]
[390878189,1760183488047,-1077.638623,0.00030154,30]
[390878190,1760183488056,-1077.638623,0.00030154,30]
[390878191,1760183488065,-1077.638623,0.00030154,30]
[390878192,1760183488075,-151.0,0.00030154,30]
[390878193,1760183488084,-151.0,0.00030154,30]
[390878194,1760183488093,-151.0,0.00030154,30]
[390878195,1760183488102,-151.0,0.00030154,30]
[390878196,1760183488112,-151.0,0.00030154,30]
[390878197,1760183488122,-151.0,0.00030154,30]
[390878198,1760183488132,-151.0,0.00030154,30]
[390878199,1760183488142,-151.0,0.00030154,30]
[390878200,1760183488152,-151.0,0.00030154,30]
[390878201,1760183488162,-151.0,0.00030154,30]
[390878202,1760183488172,-151.0,0.00030154,30]
[390878203,1760183488181,-154.981293,0.00030154,30]
[390878204,1760183488193,-151.0,0.00030154,30]
[390878205,1760183488203,-151.0,0.00030154,30]
[390878206,1760183488214,-160.876197,0.00030154,30]
[390878207,1760183488224,-160.876197,0.00030154,30]
[390878208,1760183488234,-160.876197,0.00030154,30]
[390878209,1760183488247,-160.876197,0.00030154,30]
[390878210,1760183488258,-160.876197,0.00030154,30]
[390878211,1760183488267,-160.876197,0.00030154,30]
[390878212,1760183488277,-160.876197,0.00030154,30]
[390878213,1760183488601,-160.876197,0.00030154,30]
[390878214,1760183488618,-160.876197,0.00030154,30]
[390878215,1760183488632,-160.876197,0.00030154,30]
[390878216,1760183488642,-151.0,0.00030154,30]
[390878217,1760183488651,-160.876197,0.00030154,30]
[390878218,1760183488661,-240.681812,0.00030154,30]
[390878219,1760183488670,-160.8762,0.00030154,30]
[390878220,1760183488680,-168.256538,0.00030154,15]
[390878221,1760183488691,-168.256538,0.00030154,15]
[390878222,1760183488700,-168.256538,0.00030154,15]
[390878223,1760183488709,-168.256538,0.00030154,15]
[390878224,1760183488719,-168.256538,0.00030154,15]
[390878225,1760183488728,-168.256538,0.00030154,15]
[390878226,1760183488738,-168.256538,0.00030154,15]
[390878227,1760183488747,-168.256538,0.00030154,15]
[390878228,1760183488756,-168.256538,0.00030154,15]
[390878229,1760183488765,-168.256538,0.00030154,15]
[390878230,1760183488773,-151.0,0.00030154,30]
[390878231,1760183488782,-168.256538,0.00030154,15]
[390878232,1760183488791,-151.0,0.00030154,30]
[390878233,1760183488800,-168.256542,0.00030154,15]
[390878234,1760183488811,-151.0,0.00030154,30]
[390878235,1760183488821,-151.0,0.00030154,30]
[390878236,1760183488832,-151.0,0.00030154,30]
[390878237,1760183488841,-151.0,0.00030154,30]
[390878238,1760183488853,-151.0,0.00030154,30]
[390878239,1760183488862,-235.476086,0.00030154,30]
[390878240,1760183488871,-151.0,0.00030154,30]
[390878241,1760183488881,-151.0,0.00030154,30]
[390878242,1760183488889,-151.0,0.00030154,30]
[390878243,1760183488899,-151.0,0.00030154,30]
[390878244,1760183488908,-151.0,0.00030154,30]
[390878245,1760183488918,-151.0,0.00030154,30]
[390878246,1760183488927,-151.0,0.00030154,30]
[390878247,1760183488936,-289.836082,0.00030154,30]
[390878248,1760183488946,-151.0,0.00030154,30]
[390878249,1760183488957,-151.0,0.00030154,30]
[390878250,1760183488966,-151.0,0.00030154,30]
[390878251,1760183488975,-151.0,0.00030154,30]
[390878252,1760183488985,-266.271205,0.00030154,30]
[390878253,1760183488994,-151.0,0.00030154,30]
[390878254,1760183489003,-299.823916,0.00030154,30]
[390878255,1760183489012,-240.590188,0.00030154,30]
[390878256,1760183489021,-237.420303,0.00030154,30]
[390878257,1760183489030,-237.420303,0.00030154,30]
[390878258,1760183489039,-237.420303,0.00030154,30]
[390878259,1760183489048,-237.420303,0.00030154,30]
[390878260,1760183489057,-237.420303,0.00030154,30]
[390878261,1760183489066,-237.420303,0.00030154,30]
[390878262,1760183489075,-237.420303,0.00030154,30]
[390878263,1760183489084,-237.420303,0.00030154,30]
[390878264,1760183489094,-237.420303,0.00030154,30]
[390878265,1760183489103,-237.420303,0.00030154,30]
[390878266,1760183489112,-237.420303,0.00030154,30]
[390878267,1760183489121,-237.420304,0.00030154,30]
[390878268,1760183489130,-151.0,0.00030154,30]
[390878269,1760183489139,-151.0,0.00030154,30]
[390878270,1760183489148,-151.0,0.00030154,30]
[390878271,1760183489157,-151.0,0.00030154,30]
[390878272,1760183489166,-151.0,0.00030154,30]
[390878273,1760183489175,-151.0,0.00030154,30]
[390878274,1760183489185,-229.504488,0.00030154,30]
[390878275,1760183489194,-229.504488,0.00030154,30]
[390878276,1760183489203,-229.504488,0.00030154,30]
[390878277,1760183489213,-229.504488,0.00030154,30]
[390878278,1760183489222,-229.504488,0.00030154,30]
[390878279,1760183489232,-229.504488,0.00030154,30]
[390878280,1760183489241,-229.504488,0.00030154,30]
[390878281,1760183489250,-229.504488,0.00030154,30]
[390878282,1760183489259,-229.504488,0.00030154,30]
[390878283,1760183489269,-229.504488,0.00030154,30]
[390878284,1760183489280,-229.504488,0.00030154,30]
[390878285,1760183489292,-229.504495,0.00030154,30]
[390878286,1760183489302,-438.58187617,0.00030155,2]
[390878287,1760183489311,-152.198179,0.00030156,7]
[390878288,1760183489320,-154.809388,0.00030156,7]
[390878289,1760183489330,-3570320.16365144,0.00030157,20]
[390878290,1760183489352,-460.0,0.00030157,20]
[390878291,1760183489364,-540.0,0.00030157,20]
[390878292,1760183489376,-1790.48099713,0.00030157,20]
[390878293,1760183489391,-1700.0,0.00020307,2]
[390878294,1760183489400,-40914.34877191,0.00030157,20]
[390878295,1760183489411,-17002.15063181,0.00030157,20]
[390878296,1760183489730,-500.0,0.00024657,9]
[390878297,1760183489740,-10.33522986,0.00024657,9]
[390878298,1760183489752,-2412.62477014,0.00024657,9]
[390878299,1760183489769,-500.0,0.00024657,9]
[390878300,1760183489785,-500.0,0.00024657,9]
[390878301,1760183489795,-2422.96,0.00024657,9]
[390878302,1760183489806,-500.0,0.00024657,9]
[390878303,1760183489815,-1838.04190997,0.00024657,9]
[390878304,1760183489827,-584.91809003,0.00024657,9]
[390878305,1760183489847,-500.0,0.00024657,9]
[390878306,1760183489857,-160.0,0.00024657,7]
[390878307,1760183489866,-2422.96,0.00024657,9]
[390878308,1760183489875,-500.0,0.00024657,9]
[390878309,1760183489884,-1145.01390755,0.00024657,9]
[390878310,1760183489896,-507.34188192,0.00024657,9]
[390878311,1760183489982,-186.0,0.00020438,3]
[390878312,1760183489991,-770.60421053,0.00024657,9]
[390878313,1760183490000,-500.0,0.00024657,9]
[390878314,1760183490009,-2422.96,0.00024657,9]
[390878315,1760183490019,-603.48479262,0.00024657,9]
[390878316,1760183490028,-2422.96,0.00024657,9]
[390878317,1760183490037,-2422.96,0.00024657,9]
[390878318,1760183490047,-500.0,0.00024657,9]
[390878319,1760183490057,-2422.96,0.00024657,9]
[390878320,1760183490066,-2422.96,0.00024657,9]
[390878321,1760183490075,-2422.96,0.00024657,9]
[390878322,1760183490084,-500.0,0.00024657,9]
[390878323,1760183490094,-2422.96,0.00024657,9]
[390878324,1760183490104,-500.0,0.00024657,9]
[390878325,1760183490113,-2422.96,0.00024657,9]
[390878326,1760183490123,-500.0,0.00024657,9]
[390878327,1760183490132,-2422.96,0.00024657,9]